fUSD/lending_fUSD_20251225
["ID","MTS","AMOUNT","RATE_DAILY","PERIOD"]
[399723185,1766635851700,-500.0,0.00032876,11]
[399723186,1766635851876,-500.0,0.00032876,11]
[399723187,1766635851895,-512.62541215,0.00032876,11]
[399723188,1766635851905,-500.0,0.00032876,11]
[399723189,1766635851916,-500.0,0.00032876,11]
[399723190,1766635851926,-642.60206285,0.00032876,11]
[399723191,1766635851936,-500.0,0.00032876,11]
[399723192,1766635851946,-500.0,0.00032876,11]
[399723193,1766635851956,-420.38257277,0.00032876,11]
[399723194,1766635851966,-500.0,0.00032876,11]
[399723195,1766635851976,-500.0,0.00032876,11]
[399723196,1766635851986,-500.0,0.00032876,11]
[399723197,1766635851995,-500.0,0.00032876,11]
[399723198,1766635852004,-500.31626741,0.00032876,11]
[399723199,1766635852015,-500.0,0.00032876,11]
[399723200,1766635852025,-500.0,0.00032876,11]
[399723201,1766635852035,-500.0,0.00032876,11]
[399723202,1766635852045,-500.0,0.00032876,11]
[399723203,1766635852055,-2322.26,0.00032876,11]
[399723204,1766635852064,-500.0,0.00032876,11]
[399723205,1766635852074,-505.37220207,0.00032876,11]
[399723206,1766635852085,-500.0,0.00032876,7]
[399723207,1766635852095,-500.0,0.00032876,2]
[399723208,1766635852105,-500.0,0.00032876,11]
[399723209,1766635852116,-641.85844928,0.00032876,10]
[399723210,1766635852126,-500.0,0.00032876,11]
[399723211,1766635852137,-1209.56,0.00032876,11]
[399723212,1766635852147,-500.0,0.00032876,11]
[399723213,1766635852157,-500.0,0.00032876,11]
[399723214,1766635852167,-352.45415912,0.00032876,2]
[399723215,1766635852177,-505.18798546,0.00032876,2]
[399723216,1766635852188,-556.12538538,0.00032876,11]
[399723217,1766635852199,-500.0,0.00032876,11]
[399723218,1766635852209,-270.34918973,0.00032876,11]
[399723219,1766635852219,-573.20471948,0.00032876,11]
[399723220,1766635852230,-500.0,0.00032876,11]
[399723221,1766635852241,-560.52034102,0.00032876,11]
[399723222,1766635852251,-455.25295156,0.00032876,11]
[399723223,1766635852262,-549.23,0.00032876,11]
[399723224,1766635852272,-5595.09,0.00032876,11]
[399723225,1766635852283,-536.42768473,0.00032876,11]
[399723226,1766635852293,-500.0,0.00032876,11]
[399723227,1766635852303,-500.0,0.00032876,11]
[399723228,1766635852312,-500.0,0.00032876,11]
[399723229,1766635852321,-348.81770919,0.00032876,11]
[399723230,1766635852331,-500.0,0.00032876,11]
[399723231,1766635852342,-500.0,0.00032876,11]
[399723232,1766635852353,-503.33539467,0.00032876,11]
[399723233,1766635852363,-500.0,0.00032876,11]
[399723234,1766635852372,-500.0,0.00032876,11]
[399723235,1766635852382,-500.0,0.00032876,11]
[399723236,1766635852392,-576.50417612,0.00032876,11]
[399723237,1766635852402,-500.0,0.00032876,11]
[399723238,1766635852412,-280.98114756,0.00032876,11]
[399723239,1766635852423,-500.0,0.00032876,11]
[399723240,1766635852432,-566.14627896,0.00032876,11]
[399723241,1766635852442,-300.0,0.00032876,11]
[399723242,1766635852452,-217.27195965,0.00032876,11]
[399723243,1766635852462,-500.0,0.00032876,11]
[399723244,1766635852473,-509.97594817,0.00032876,11]
[399723245,1766635852483,-500.0,0.00032876,11]
[399723246,1766635852493,-500.0,0.00032876,11]
[399723247,1766635852504,-190.84590991,0.00032876,11]
[399723248,1766635852514,-500.0,0.00032876,11]
[399723249,1766635852525,-578.46,0.00032876,11]
[399723250,1766635852535,-646.63188879,0.00032876,11]
[399723251,1766635852546,-642.77966496,0.00032876,11]
[399723252,1766635852556,-585.55,0.00032876,5]
[399723253,1766635852568,-572.12994482,0.00032876,11]
[399723254,1766635852580,-632.77820107,0.00032876,11]
[399723255,1766635852589,-500.0,0.00032876,11]
[399723256,1766635852599,-500.0,0.00032876,11]
[399723257,1766635852611,-206.091809,0.00032876,2]
[399723258,1766635852620,-278.47305672,0.00032876,11]
[399723259,1766635852630,-500.0,0.00032876,2]
[399723260,1766635852641,-500.0,0.00032876,2]
[399723261,1766635852652,-500.0,0.00032877,2]
[399723262,1766635852661,-515.99,0.00032877,2]
[399723263,1766635852671,-342.85,0.00032877,2]
[399723264,1766635852682,-500.0,0.00032877,2]
[399723265,1766635852692,-500.0,0.00032877,2]
[399723266,1766635852702,-500.0,0.00032877,2]
[399723267,1766635852712,-500.0,0.00032877,2]
[399723268,1766635852722,-500.0,0.00032877,2]
[399723269,1766635852732,-327.8095602,0.00032877,2]
[399723270,1766635852743,-150.0,0.00032877,2]
[399723271,1766635852754,-500.0,0.00032877,7]
[399723272,1766635852764,-500.0,0.00032877,7]
[399723273,1766635852774,-500.0,0.00032877,7]
[399723274,1766635852784,-500.0,0.00032877,7]
[399723275,1766635852795,-500.0,0.00032877,7]
[399723276,1766635852806,-500.0,0.00032877,7]
[399723277,1766635852816,-500.0,0.00032877,7]
[399723278,1766635852826,-500.0,0.00032877,7]
[399723279,1766635852836,-500.0,0.00032877,7]
[399723280,1766635852847,-500.0,0.00032877,7]
[399723281,1766635852857,-500.0,0.00032877,7]
[399723282,1766635852867,-500.0,0.00032877,7]
[399723283,1766635852877,-500.0,0.00032877,7]
[399723284,1766635852887,-500.0,0.00032877,7]
[399723285,1766635852897,-500.0,0.00032877,7]
[399723286,1766635852907,-500.0,0.00032877,7]
[399723287,1766635852917,-500.0,0.00032877,7]
[399723288,1766635852928,-500.0,0.00032877,7]
[399723289,1766635852938,-500.0,0.00032877,7]
[399723290,1766635852948,-500.0,0.00032877,7]
[399723291,1766635852958,-500.0,0.00032877,7]
[399723292,1766635852968,-500.0,0.00032877,7]
[399723293,1766635852978,-500.0,0.00032877,7]
[399723294,1766635852989,-500.0,0.00032877,7]
[399723295,1766635852999,-500.0,0.00032877,7]
[399723296,1766635853009,-500.0,0.00032877,7]
[399723297,1766635853018,-500.0,0.00032877,7]
[399723298,1766635853028,-314.01499328,0.00032877,7]
[399723299,1766635853038,-500.0,0.00032877,7]
[399723300,1766635853048,-500.0,0.00032877,7]
[399723301,1766635853065,-500.0,0.00032877,7]
[399723302,1766635853075,-500.0,0.00032877,7]
[399723303,1766635853085,-500.0,0.00032877,7]
[399723304,1766635853096,-500.0,0.00032877,7]
[399723305,1766635853106,-500.0,0.00032877,7]
[399723306,1766635853116,-500.0,0.00032877,7]
[399723307,1766635853127,-500.0,0.00032877,7]
[399723308,1766635853138,-500.0,0.00032877,7]
[399723309,1766635853147,-500.0,0.00032879,11]
[399723310,1766635853157,-500.0,0.00032879,11]
[399723311,1766635853166,-152.28,0.000329,14]
[399723312,1766635853176,-663.02,0.000329,14]
[399723313,1766635853187,-6181.0,0.000329,2]
[399723314,1766635853197,-500.0,0.00032904,2]
[399723315,1766635853207,-150.0,0.00032904,2]
[399723316,1766635853218,-28192.06716255,0.00032908,2]
[399723317,1766635853228,-9957.40381954,0.00032931,2]
[399723318,1766635853238,-171.41662455,0.00032931,2]
[399723319,1766635853249,-210.16508112,0.00032932,2]
[399723320,1766635853259,-170.0,0.00033,14]
[399723321,1766635853269,-1000.0,0.00033073,11]
[399723322,1766635853279,-649.22,0.000331,30]
[399723323,1766635853289,-280.420637,0.0003315,11]
[399723324,1766635853298,-179.39874284,0.0003315,11]
[399723325,1766635853308,-500.0,0.0003315,11]
[399723326,1766635853318,-500.0,0.0003315,11]
[399723327,1766635853328,-474.67218499,0.0003315,11]
[399723328,1766635853337,-500.0,0.0003315,11]
[399723329,1766635853347,-500.0,0.0003315,11]
[399723330,1766635853357,-500.0,0.0003315,11]
[399723331,1766635853368,-500.0,0.0003315,11]
[399723332,1766635853378,-210.30748828,0.0003315,11]
[399723333,1766635853388,-500.0,0.0003315,11]
[399723334,1766635853399,-532.69555751,0.0003315,11]
[399723335,1766635853408,-500.0,0.0003315,11]
[399723336,1766635853418,-498.97251519,0.0003315,11]
[399723337,1766635853428,-500.0,0.0003315,11]
[399723338,1766635853438,-500.0,0.0003315,11]
[399723339,1766635853449,-513.31008021,0.0003315,11]
[399723340,1766635853459,-500.0,0.0003315,11]
[399723341,1766635853470,-500.0,0.0003315,11]
[399723342,1766635853480,-542.39162861,0.0003315,11]
[399723343,1766635853491,-500.0,0.0003315,11]
[399723344,1766635853502,-500.0,0.0003315,11]
[399723345,1766635853511,-500.0,0.0003315,11]
[399723346,1766635853521,-500.0,0.0003315,11]
[399723347,1766635853531,-500.0,0.0003315,11]
[399723348,1766635853542,-500.0,0.0003315,11]
[399723349,1766635853552,-500.0,0.0003315,11]
[399723350,1766635853562,-500.0,0.0003315,11]
[399723351,1766635853576,-500.0,0.0003315,11]
[399723352,1766635853587,-500.0,0.0003315,11]
[399723353,1766635853597,-500.0,0.0003315,11]
[399723354,1766635853608,-500.0,0.0003315,11]
[399723355,1766635853618,-2322.26,0.0003315,11]
[399723356,1766635853628,-500.0,0.0003315,11]
[399723357,1766635853638,-214.84553531,0.0003315,7]
[399723358,1766635853648,-500.0,0.0003315,2]
[399723359,1766635853658,-500.0,0.0003315,11]
[399723360,1766635853668,-1209.56,0.0003315,11]
[399723361,1766635853677,-500.0,0.0003315,11]
[399723362,1766635853687,-500.0,0.0003315,11]
[399723363,1766635853697,-237.50233928,0.0003315,11]
[399723364,1766635853708,-454.01201194,0.0003315,11]
[399723365,1766635853719,-549.23,0.0003315,11]
[399723366,1766635853730,-5595.09,0.0003315,11]
[399723367,1766635853743,-500.0,0.0003315,11]
[399723368,1766635853754,-500.0,0.0003315,11]
[399723369,1766635853764,-414.90576165,0.0003315,11]
[399723370,1766635853774,-500.0,0.0003315,11]
[399723371,1766635853784,-500.0,0.0003315,11]
[399723372,1766635853795,-205.8998904,0.0003315,11]
[399723373,1766635853806,-500.0,0.0003315,11]
[399723374,1766635853816,-500.0,0.0003315,11]
[399723375,1766635853826,-500.0,0.0003315,11]
[399723376,1766635853839,-500.0,0.0003315,11]
[399723377,1766635853850,-339.15664192,0.0003315,11]
[399723378,1766635853860,-500.0,0.0003315,11]
[399723379,1766635853870,-227.82556087,0.0003315,11]
[399723380,1766635853882,-156.45282924,0.0003315,11]
[399723381,1766635853891,-376.30292768,0.0003315,11]
[399723382,1766635853901,-578.46,0.0003315,11]
[399723383,1766635853911,-585.55,0.0003315,5]
[399723384,1766635853921,-500.0,0.0003315,11]
[399723385,1766635853932,-496.03185919,0.0003315,11]
[399723386,1766635853943,-500.0,0.0003315,2]
[399723387,1766635853954,-304.65322654,0.0003315,2]
[399723388,1766635853964,-384.63394623,0.0003315,2]
[399723389,1766635853975,-209.5,0.000334,30]
[399723390,1766635853985,-500.0,0.00033424,11]
[399723391,1766635853995,-500.0,0.00033424,11]
[399723392,1766635854006,-500.0,0.00033424,11]
[399723393,1766635854016,-500.0,0.00033424,11]
[399723394,1766635854026,-500.0,0.00033424,11]
[399723395,1766635854036,-500.0,0.00033424,11]
[399723396,1766635854047,-500.0,0.00033424,11]
[399723397,1766635854056,-500.0,0.00033424,11]
[399723398,1766635854066,-500.0,0.00033424,11]
[399723399,1766635854077,-583.78304371,0.00033424,11]
[399723400,1766635854087,-500.0,0.00033424,11]
[399723401,1766635854098,-500.0,0.00033424,11]
[399723402,1766635854108,-500.0,0.00033424,11]
[399723403,1766635854118,-500.0,0.00033424,11]
[399723404,1766635854128,-500.0,0.00033424,11]
[399723405,1766635854502,-500.0,0.00033424,11]
[399723406,1766635854513,-500.0,0.00033424,11]
[399723407,1766635854523,-500.0,0.00033424,11]
[399723408,1766635854533,-500.0,0.00033424,11]
[399723409,1766635854543,-500.0,0.00033424,11]
[399723410,1766635854553,-500.0,0.00033424,11]
[399723411,1766635854563,-500.0,0.00033424,11]
[399723412,1766635854578,-500.0,0.00033424,11]
[399723413,1766635854588,-500.0,0.00033424,11]
[399723414,1766635854599,-2322.26,0.00033424,11]
[399723415,1766635854609,-500.0,0.00033424,11]
[399723416,1766635854620,-355.04447144,0.00033424,2]
[399723417,1766635854633,-367.18835014,0.00033424,11]
[399723418,1766635854649,-1209.56,0.00033424,11]
[399723419,1766635854659,-500.0,0.00033424,11]
[399723420,1766635854669,-500.0,0.00033424,11]
[399723421,1766635854680,-500.0,0.00033424,11]
[399723422,1766635854693,-549.23,0.00033424,11]
[399723423,1766635854712,-5595.09,0.00033424,11]
[399723424,1766635854722,-500.0,0.00033424,11]
[399723425,1766635854731,-520.06910549,0.00033424,11]
[399723426,1766635854741,-500.0,0.00033424,11]
[399723427,1766635854751,-500.0,0.00033424,11]
[399723428,1766635854761,-500.0,0.00033424,11]
[399723429,1766635854770,-500.0,0.00033424,11]
[399723430,1766635854779,-500.0,0.00033424,11]
[399723431,1766635854789,-500.0,0.00033424,11]
[399723432,1766635854798,-500.0,0.00033424,11]
[399723433,1766635854807,-500.0,0.00033424,11]
[399723434,1766635854818,-578.46,0.00033424,11]
[399723435,1766635854831,-585.55,0.00033424,5]
[399723436,1766635854840,-474.30467974,0.00033424,11]
[399723437,1766635854850,-500.0,0.00033424,2]
[399723438,1766635854860,-1000.0,0.00033452,11]
[399723439,1766635854870,-2382.5,0.00033592,3]
[399723440,1766635854880,-663.02,0.000336,14]
[399723441,1766635854891,-6181.0,0.000336,2]
[399723442,1766635854901,-598.20024578,0.00033698,11]
[399723443,1766635854911,-500.0,0.00033698,11]
[399723444,1766635854920,-500.0,0.00033698,11]
[399723445,1766635854929,-500.0,0.00033698,11]
[399723446,1766635854939,-403.02058187,0.00033698,11]
[399723447,1766635854949,-500.0,0.00033698,11]
[399723448,1766635854959,-500.0,0.00033698,11]
[399723449,1766635854969,-500.0,0.00033698,11]
[399723450,1766635854979,-500.0,0.00033698,11]
[399723451,1766635854989,-234.9994797,0.00033698,11]
[399723452,1766635854999,-500.0,0.00033698,11]
[399723453,1766635855010,-500.0,0.00033698,11]
[399723454,1766635855019,-500.0,0.00033698,11]
[399723455,1766635855029,-500.0,0.00033698,11]
[399723456,1766635855039,-500.0,0.00033698,11]
[399723457,1766635855049,-314.21506345,0.00033698,11]
[399723458,1766635855061,-500.0,0.00033698,11]
[399723459,1766635855071,-500.0,0.00033698,11]
[399723460,1766635855080,-500.0,0.00033698,11]
[399723461,1766635855090,-500.0,0.00033698,11]
[399723462,1766635855100,-500.0,0.00033698,11]
[399723463,1766635855109,-508.86999622,0.00033698,11]
[399723464,1766635855118,-2322.26,0.00033698,11]
[399723465,1766635855128,-500.0,0.00033698,11]
[399723466,1766635855139,-1209.56,0.00033698,11]
[399723467,1766635855149,-500.0,0.00033698,11]
[399723468,1766635855159,-500.0,0.00033698,11]
[399723469,1766635855169,-549.23,0.00033698,11]
[399723470,1766635855179,-5595.09,0.00033698,11]
[399723471,1766635855190,-500.0,0.00033698,11]
[399723472,1766635855200,-500.0,0.00033698,11]
[399723473,1766635855211,-500.0,0.00033698,11]
[399723474,1766635855221,-509.67490394,0.00033698,11]
[399723475,1766635855230,-500.0,0.00033698,11]
[399723476,1766635855240,-500.0,0.00033698,11]
[399723477,1766635855250,-500.0,0.00033698,11]
[399723478,1766635855259,-500.0,0.00033698,11]
[399723479,1766635855269,-578.46,0.00033698,11]
[399723480,1766635855279,-585.55,0.00033698,5]
[399723481,1766635855290,-500.0,0.00033698,2]
[399723482,1766635855299,-1000.0,0.00033831,11]
[399723483,1766635855309,-1327.0,0.00033905,2]
[399723484,1766635855318,-1610.0,0.00033905,2]
[399723485,1766635855329,-615.062,0.00033905,2]
[399723486,1766635855339,-3459.0,0.00033905,2]
[399723487,1766635855349,-1263.0,0.00033905,2]
[399723488,1766635855360,-432.0,0.00033905,2]
[399723489,1766635855371,-912.0,0.00033905,2]
[399723490,1766635855382,-1198.0,0.00033905,2]
[399723491,1766635855393,-4807.0,0.00033905,2]
[399723492,1766635855403,-564.0,0.00033905,2]
[399723493,1766635855414,-2430.0,0.00033905,2]
[399723494,1766635855424,-500.0,0.00033972,11]
[399723495,1766635855435,-500.0,0.00033972,11]
[399723496,1766635855444,-500.0,0.00033972,11]
[399723497,1766635855454,-500.0,0.00033972,11]
[399723498,1766635855465,-500.0,0.00033972,11]
[399723499,1766635855476,-500.0,0.00033972,11]
[399723500,1766635855485,-500.0,0.00033972,11]
[399723501,1766635855495,-500.0,0.00033972,11]
[399723502,1766635855504,-500.0,0.00033972,11]
[399723503,1766635855515,-543.65709727,0.00033972,11]
[399723504,1766635855525,-383.56547848,0.00033972,11]
[399723505,1766635855535,-323.84270726,0.00033972,11]
[399723506,1766635855545,-500.0,0.00033972,11]
[399723507,1766635855555,-500.0,0.00033972,11]
[399723508,1766635855564,-500.0,0.00033972,11]
[399723509,1766635855577,-500.0,0.00033972,11]
[399723510,1766635855587,-500.0,0.00033972,11]
[399723511,1766635855597,-2322.26,0.00033972,11]
[399723512,1766635855607,-500.0,0.00033972,11]
[399723513,1766635855618,-1209.56,0.00033972,11]
[399723514,1766635855628,-500.0,0.00033972,11]
[399723515,1766635855637,-500.0,0.00033972,11]
[399723516,1766635855646,-549.23,0.00033972,11]
[399723517,1766635855656,-5595.09,0.00033972,11]
[399723518,1766635855667,-500.0,0.00033972,11]
[399723519,1766635855677,-500.0,0.00033972,11]
[399723520,1766635855688,-500.0,0.00033972,11]
[399723521,1766635855698,-500.0,0.00033972,11]
[399723522,1766635855708,-500.0,0.00033972,11]
[399723523,1766635855718,-500.0,0.00033972,11]
[399723524,1766635855728,-500.0,0.00033972,11]
[399723525,1766635855738,-578.46,0.00033972,11]
[399723526,1766635855747,-585.55,0.00033972,5]
[399723527,1766635855758,-1000.0,0.0003421,11]
[399723528,1766635855768,-152.3404577,0.00034219,2]
[399723529,1766635855777,-500.0,0.00034246,11]
[399723530,1766635855787,-500.0,0.00034246,11]
[399723531,1766635855797,-500.0,0.00034246,11]
[399723532,1766635855807,-500.0,0.00034246,11]
[399723533,1766635855817,-500.0,0.00034246,11]
[399723534,1766635855827,-500.0,0.00034246,11]
[399723535,1766635855837,-500.0,0.00034246,11]
[399723536,1766635855846,-500.0,0.00034246,11]
[399723537,1766635855855,-500.0,0.00034246,11]
[399723538,1766635855866,-500.0,0.00034246,11]
[399723539,1766635855876,-500.0,0.00034246,11]
[399723540,1766635855886,-500.0,0.00034246,11]
[399723541,1766635855896,-500.0,0.00034246,11]
[399723542,1766635855906,-500.0,0.00034246,11]
[399723543,1766635855916,-2322.26,0.00034246,11]
[399723544,1766635855927,-500.0,0.00034246,11]
[399723545,1766635855938,-1209.56,0.00034246,11]
[399723546,1766635855948,-500.0,0.00034246,11]
[399723547,1766635855958,-500.0,0.00034246,11]
[399723548,1766635855968,-549.23,0.00034246,11]
[399723549,1766635855977,-5595.09,0.00034246,11]
[399723550,1766635855987,-523.14071602,0.00034246,11]
[399723551,1766635855996,-368.52564434,0.00034246,11]
[399723552,1766635856007,-500.0,0.00034246,11]
[399723553,1766635856017,-500.0,0.00034246,11]
[399723554,1766635856030,-500.0,0.00034246,11]
[399723555,1766635856041,-500.0,0.00034246,11]
[399723556,1766635856051,-500.0,0.00034246,11]
[399723557,1766635856062,-578.46,0.00034246,11]
[399723558,1766635856072,-585.55,0.00034246,5]
[399723559,1766635856081,-398.86540225,0.00034519,2]
[399723560,1766635856091,-3631.93325226,0.0003452,11]
[399723561,1766635856100,-500.0,0.0003452,11]
[399723562,1766635856109,-500.0,0.0003452,11]
[399723563,1766635856119,-500.0,0.0003452,11]
[399723564,1766635856128,-464.25281137,0.0003452,11]
[399723565,1766635856137,-500.0,0.0003452,11]
[399723566,1766635856147,-500.0,0.0003452,11]
[399723567,1766635856158,-500.0,0.0003452,11]
[399723568,1766635856168,-500.0,0.0003452,11]
[399723569,1766635856180,-500.0,0.0003452,11]
[399723570,1766635856191,-500.0,0.0003452,11]
[399723571,1766635856200,-500.0,0.0003452,11]
[399723572,1766635856209,-500.0,0.0003452,11]
[399723573,1766635856219,-500.0,0.0003452,11]
[399723574,1766635856230,-500.0,0.0003452,11]
[399723575,1766635856241,-2322.26,0.0003452,11]
[399723576,1766635856252,-500.0,0.0003452,11]
[399723577,1766635856262,-1209.56,0.0003452,11]
[399723578,1766635856272,-500.0,0.0003452,11]
[399723579,1766635856282,-500.0,0.0003452,11]
[399723580,1766635856291,-5595.09,0.0003452,11]
[399723581,1766635856300,-549.23,0.0003452,11]
[399723582,1766635856310,-500.0,0.0003452,11]
[399723583,1766635856321,-300.52688609,0.0003452,11]
[399723584,1766635856332,-500.0,0.0003452,11]
[399723585,1766635856342,-500.0,0.0003452,11]
[399723586,1766635856352,-500.0,0.0003452,11]
[399723587,1766635856363,-578.46,0.0003452,11]
[399723588,1766635856373,-585.55,0.0003452,5]
[399723589,1766635856383,-1000.0,0.00034588,11]
[399723590,1766635856392,-4266.16951405,0.00034619,7]
[399723591,1766635856402,-209.5,0.000347,30]
[399723592,1766635856412,-500.0,0.00034794,11]
[399723593,1766635856422,-500.0,0.00034794,11]
[399723594,1766635856433,-500.0,0.00034794,11]
[399723595,1766635856444,-392.07096512,0.00034794,11]
[399723596,1766635856454,-500.0,0.00034794,11]
[399723597,1766635856465,-500.0,0.00034794,11]
[399723598,1766635856475,-500.0,0.00034794,11]
[399723599,1766635856486,-500.0,0.00034794,11]
[399723600,1766635856497,-500.0,0.00034794,11]
[399723601,1766635856507,-500.0,0.00034794,11]
[399723602,1766635856516,-500.0,0.00034794,11]
[399723603,1766635856526,-500.0,0.00034794,11]
[399723604,1766635856535,-500.0,0.00034794,11]
[399723605,1766635856547,-2322.26,0.00034794,11]
[399723606,1766635856558,-500.0,0.00034794,11]
[399723607,1766635856568,-1209.56,0.00034794,11]
[399723608,1766635856581,-500.0,0.00034794,11]
[399723609,1766635856591,-500.0,0.00034794,11]
[399723610,1766635856600,-5595.09,0.00034794,11]
[399723611,1766635856610,-549.23,0.00034794,11]
[399723612,1766635856622,-500.0,0.00034794,11]
[399723613,1766635856632,-500.0,0.00034794,11]
[399723614,1766635856642,-242.34289308,0.00034794,11]
[399723615,1766635856654,-500.0,0.00034794,11]
[399723616,1766635856665,-578.46,0.00034794,11]
[399723617,1766635856675,-585.55,0.00034794,5]
[399723618,1766635856685,-663.02,0.000348,14]
[399723619,1766635856695,-2000.0,0.000348,2]
[399723620,1766635856706,-6181.0,0.000348,2]
[399723621,1766635856716,-373.75870266,0.00034894,30]
[399723622,1766635856726,-1500.0,0.00034894,30]
[399723623,1766635856736,-500.0,0.00034894,30]
[399723624,1766635856746,-553.64373807,0.00034894,30]
[399723625,1766635856756,-500.0,0.00034894,30]
[399723626,1766635856766,-500.0,0.00034894,30]
[399723627,1766635856777,-1500.0,0.00034894,30]
[399723628,1766635856787,-500.0,0.00034894,30]
[399723629,1766635856797,-250.0,0.00034894,30]
[399723630,1766635856808,-250.0,0.00034894,30]
[399723631,1766635856818,-250.0,0.00034894,30]
[399723632,1766635856827,-151.0,0.00034894,30]
[399723633,1766635856837,-1000.0,0.00034946,30]
[399723634,1766635856847,-500.0,0.00034947,47]
[399723635,1766635856857,-500.0,0.00034947,47]
[399723636,1766635856867,-1500.0,0.00034947,47]
[399723637,1766635856878,-533.88981491,0.00034947,47]
[399723638,1766635856888,-500.0,0.00034947,47]
[399723639,1766635856898,-500.0,0.00034947,47]
[399723640,1766635856907,-1500.0,0.00034947,47]
[399723641,1766635856916,-500.0,0.00034947,47]
[399723642,1766635856927,-250.0,0.00034947,47]
[399723643,1766635856938,-250.0,0.00034947,47]
[399723644,1766635856947,-250.0,0.00034947,47]
[399723645,1766635856957,-151.0,0.00034947,47]
[399723646,1766635856967,-1000.0,0.00034967,11]
[399723647,1766635856977,-150.891,0.00035061,2]
[399723648,1766635856986,-217.814,0.00035061,2]
[399723649,1766635857059,-256.083,0.00035061,2]
[399723650,1766635857070,-250.0,0.00035061,2]
[399723651,1766635857081,-156.406,0.00035061,2]
[399723652,1766635857091,-250.0,0.00035061,2]
[399723653,1766635857102,-211.543,0.00035061,2]
[399723654,1766635857112,-250.0,0.00035061,2]
[399723655,1766635857121,-227.273,0.00035061,2]
[399723656,1766635857130,-167.0,0.00035061,2]
[399723657,1766635857139,-633.54001496,0.00035068,11]
[399723658,1766635857149,-500.0,0.00035068,11]
[399723659,1766635857158,-500.0,0.00035068,11]
[399723660,1766635857169,-500.0,0.00035068,11]
[399723661,1766635857180,-500.0,0.00035068,11]
[399723662,1766635857190,-500.0,0.00035068,11]
[399723663,1766635857199,-500.0,0.00035068,11]
[399723664,1766635857210,-524.27628181,0.00035068,11]
[399723665,1766635857220,-365.29532974,0.00035068,11]
[399723666,1766635857230,-614.68592822,0.00035068,11]
[399723667,1766635857240,-500.0,0.00035068,11]
[399723668,1766635857250,-500.0,0.00035068,11]
[399723669,1766635857260,-2322.26,0.00035068,11]
[399723670,1766635857270,-500.0,0.00035068,11]
[399723671,1766635857280,-1209.56,0.00035068,11]
[399723672,1766635857291,-500.0,0.00035068,11]
[399723673,1766635857301,-500.0,0.00035068,11]
[399723674,1766635857310,-5595.09,0.00035068,11]
[399723675,1766635857321,-549.23,0.00035068,11]
[399723676,1766635857331,-483.16775156,0.00035068,11]
[399723677,1766635857341,-500.0,0.00035068,11]
[399723678,1766635857350,-500.0,0.00035068,11]
[399723679,1766635857359,-578.46,0.00035068,11]
[399723680,1766635857370,-585.55,0.00035068,5]
[399723681,1766635857379,-150.23286089,0.00035088,7]
[399723682,1766635857390,-150.0,0.00035088,7]
[399723683,1766635857401,-150.0,0.00035088,7]
[399723684,1766635857410,-150.0,0.00035088,7]